[Event "Fagernes GM Open Autumn 2024"]
[Site "Fagernes"]
[Date "2024.10.11"]
[Round "7.14"]
[White "Krishnan, Ritvik"]
[Black "Sorensen, Hampus"]
[Result "0-1"]
[ECO "E40"]
[WhiteElo "2206"]
[BlackElo "2423"]
[Annotator "TA"]
[PlyCount "106"]
[EventDate "2024.10.03"]
[EventType "swiss"]
[EventCountry "NOR"]
[SourceTitle "playchess.com"]
[Source "ChessBase"]
[SourceQuality "1"]
[TimeControl "40/6000:2400+30"]

{[%evp 17,106,0,1,2,37,45,40,41,38,4,27,26,35,36,22,0,13,8,33,20,13,0,0,0,0,-63,-34,-44,-43,-45,-28,-26,-29,-21,-18,-27,-37,-27,-29,-54,-27,-55,-35,-64,0,-146,-57,-245,-243,-202,-225,-312,-207,-1139,-262,-265,-239,-264,-251,-252,-314,-272,-300,-415,-417,-406,-302,-301,-268,-263,-231,-224,-198,-205,-205,-205,-205,-282,-284,-287,-268,-368,-368,-362,-352,-845,-845,-845,-845,-2137,-1789]} 1. d4 {[%emt 0:00:00]} Nf6 {[%emt 0:00:00]} 2. c4 {[%emt 0:00:00]} e6 {[%emt 0:00:00]} 3. Nc3 {[%emt 0:00:00]} Bb4 {[%emt 0:00:00]} 4. e3 {[%emt 0:00:00]} Nc6 {[%emt 0:00:01]} 5. Nge2 {[%emt 0:01:21]} d5 {[%emt 0:00:33]} 6. cxd5 {[%emt 0:03:47] E40: Nimzo-Indian: Rubinstein (4 e3): Unusual Black 4th moves.} exd5 {[%emt 0:00:54]} 7. g3 {[%emt 0:00:26]} O-O {[%emt 0:11:46]} 8. Bg2 {[%emt 0:00:00]} Ne7 {[%emt 0:02:54]} 9. a3 {[%emt 0:00:23]} Bd6 {[%emt 0:02:21]} 10. Nb5 {[%emt 0:00:00]} Nf5 {[%emt 0:01:12]} 11. Nxd6 {[%emt 0:03:34]} Nxd6 {[%emt 0:00:02]} 12. O-O {[%emt 0:00:00]} c6 $146 {[%emt 0:04:10]} ({Predecessor:} 12... Re8 13. Re1 c6 14. f3 h5 15. Nc3 Nf5 16. Qd3 Qd6 17. Bd2 Bd7 18. Rad1 c5 19. dxc5 Qxc5 {½-½ Milanovic,D (2546)-Lekic,D (2387) Zadar op-A 16th 2009 (8)}) 13. b3 {[%emt 0:04:05]} Re8 {[%emt 0:00:51]} 14. a4 {[%emt 0:04:09]} Bf5 {[%emt 0:04:32]} 15. f3 {[%emt 0:02:31]} h6 {[%emt 0:02:36]} 16. Nc3 {[%emt 0:03:57]} Bh7 {[%emt 0:02:07]} 17. Re1 {[%emt 0:05:57]} Qb6 {[%emt 0:12:33]} 18. Ba3 {[%emt 0:11:49]} Rad8 {[%emt 0:01:08]} 19. Rc1 {[%emt 0:05:55]} Nf5 {[%emt 0:03:52]} 20. Bc5 {[%emt 0:02:08]} Qc7 {[%emt 0:01:18]} 21. e4 {[%emt 0:03:02]} (21. Qd2 $1 $11) 21... dxe4 {[%emt 0:17:37]} (21... b6 $5 22. exf5 bxc5 23. Rxe8+ Rxe8 $17) 22. Nxe4 {[%emt 0:15:46]} Nd5 {[%emt 0:00:00]} 23. Qd2 {[%emt 0:00:08]} Nfe3 {[%emt 0:01:30]} 24. Rxe3 {[%emt 0:01:44]} Nxe3 {[%emt 0:00:00]} 25. Qxe3 {[%emt 0:00:00]} f5 {[%emt 0:00:00]} 26. Nf6+ {[%emt 0:01:52]} gxf6 {[%emt 0:00:00]} 27. Qxh6 {[%emt 0:00:00]} Qg7 {[%emt 0:03:49]} 28. Qd2 {[%emt 0:03:35]} b6 {[%emt 0:01:12]} 29. Ba3 {[%emt 0:00:00]} c5 {[%emt 0:00:00]} 30. d5 {[%emt 0:00:00]} Qe7 {[%emt 0:04:03]} (30... f4 $1 $15 31. Qxf4 Rxd5) 31. Kf2 {[%emt 0:02:22] [#]} (31. b4 $1 $11) 31... Bg6 {[%emt 0:05:37]} ({Black should play} 31... f4 $1 $17 {White must now prevent ...Qe3+.} 32. Qxf4 Qe2+ (32... Rxd5 33. Bf1 $15) 33. Kg1 Kf7) 32. Bb2 $2 {[%emt 0:05:32] [#]} (32. Bf1 $1 $15) 32... f4 $1 $19 {[%emt 0:03:17]} 33. gxf4 {[%emt 0:03:03]} Bf7 {[%emt 0:00:00]} 34. Qc3 {[%emt 0:02:50]} Rxd5 {[%emt 0:00:55]} (34... Bxd5 35. Qxf6 Qxf6 (35... Bxb3 $2 36. Qh8+ Kf7 37. Qg7+ Ke6 38. Re1+ Kd6 39. Rxe7 $18) 36. Bxf6 $15) 35. Rg1 $2 {[%emt 0:01:39]} (35. Qxf6 Rd2+ 36. Kg3 Qxf6 (36... Bxb3 $2 37. Qh8+ Kf7 38. Qg7+ Ke6 39. Re1+ Kd6 40. Rxe7 $18) 37. Bxf6) 35... Kf8 $2 {[%emt 0:01:05]} (35... Qe2+ 36. Kg3 Kh7 (36... Rd2 $2 37. Qxf6 Qf2+ 38. Kh3 $19)) 36. Bf1 $19 {[%emt 0:00:36]} Rd4 {[%emt 0:00:15]} 37. Qc1 {[%emt 0:00:08]} Qd6 {[%emt 0:02:36]} 38. Bxd4 {[%emt 0:00:41]} Qxd4+ {[%emt 0:00:00]} (38... cxd4 39. Bb5 Rd8 40. Bd3 $11) 39. Kg2 {[%emt 0:00:00]} Bxb3 {[%emt 0:00:00]} 40. f5 {[%emt 0:00:27]} Re3 {[%emt 0:01:58]} (40... Qxa4 41. Kh1 (41. Qh6+ Ke7 $15) 41... Re5 42. Qh6+ Ke7 43. Qh8 $17) (40... Bxa4 41. Qh6+ Ke7 42. Kh1 $19 (42. Qh7+ $2 Kd6 $19)) 41. Kh1 {[%emt 0:46:08]} Qc3 {[%emt 0:42:17]} (41... Rxf3 42. Bg2 Re3 (42... Rxf5 43. Qh6+ Ke7 44. Qh7+ Kd6 45. Qxf5 $18) 43. a5 $19) ({Stronger than} 41... Bxa4 42. Rg4 Qc3 43. Qxc3 Rxc3 44. Rxa4 $18) 42. Qxc3 {[%emt 0:00:55]} Rxc3 {[%emt 0:00:04]} 43. Be2 {[%emt 0:00:00]} c4 {[%emt 0:00:00]} 44. Kg2 {[%emt 0:00:00]} Bxa4 {[%emt 0:00:00]} 45. Ra1 {[%emt 0:00:00]} Be8 {[%emt 0:00:00]} 46. Rxa7 {[%emt 0:00:00]} b5 {[%emt 0:00:00]} 47. Rb7 {[%emt 0:00:00]} Rb3 {[%emt 0:00:00]} 48. Kf2 {[%emt 0:00:00]} c3 {[%emt 0:00:00]} 49. Ke3 {[%emt 0:00:00]} b4 {[%emt 0:00:00]} 50. Rc7 {[%emt 0:00:00]} Rb2 {[%emt 0:00:00]} 51. h4 $2 {[%emt 0:00:00]} (51. Bd3) 51... c2 $19 {[%emt 0:00:00]} 52. Bd3 {[%emt 0:00:00]} b3 {[%emt 0:00:00]} 53. Rc4 {[%emt 0:00:00]} Ba4 {[%emt 0:00:00]} 0-1

[Event "Fagernes GM Open Autumn 2024"]
[Site "Fagernes"]
[Date "2024.10.11"]
[Round "7.15"]
[White "Krivenko, Dion"]
[Black "Hansen, Torbjorn Ringdal"]
[Result "1/2-1/2"]
[ECO "B30"]
[WhiteElo "2244"]
[BlackElo "2415"]
[Annotator "TA"]
[PlyCount "141"]
[EventDate "2024.10.03"]
[EventType "swiss"]
[EventCountry "NOR"]
[SourceTitle "playchess.com"]
[Source "ChessBase"]
[SourceQuality "1"]
[TimeControl "40/6000:2400+30"]

{[%evp 34,140,45,56,47,39,51,56,65,60,83,57,107,121,118,118,119,127,132,133,135,139,152,89,89,69,84,79,84,31,31,22,35,42,113,109,112,109,140,135,150,107,165,125,150,161,194,89,243,236,293,295,292,281,283,272,341,50,17,50,32,59,457,487,257,51,51,44,47,15,15,15,15,15,29968,0,0,0,0,0,0,0,0,0,0,0,15,15,15,0,0,0,0,0,0,0,0,0,0,0,0,0,0,0,0,0,0,0,0]} 1. e4 {[%emt 0:01:41]} c5 {[%emt 0:00:00]} 2. Nf3 {[%emt 0:00:00]} Nc6 {[%emt 0:00:00]} 3. Bb5 {[%emt 0:00:00]} Nf6 {[%emt 0:00:00]} 4. Nc3 {[%emt 0:00:00]} Nd4 {[%emt 0:00:00]} 5. e5 {[%emt 0:00:00]} Nxb5 {[%emt 0:00:00]} 6. Nxb5 {[%emt 0:00:00]} Nd5 {[%emt 0:00:07]} 7. O-O $1 {[%emt 0:00:00][%mdl 4] outshines the older 7.Ng5.} Nc7 {[%emt 0:00:45] B30: Sicilian: 2...Nc6 3 Bb5, lines without ...g6.} 8. Nxc7+ {[%emt 0:00:51]} Qxc7 {[%emt 0:00:00]} 9. d4 {[%emt 0:00:00]} e6 {[%emt 0:06:40]} 10. d5 $146 {[%emt 0:07:54]} ({Predecessor:} 10. Be3 b6 11. c4 d6 12. Re1 Bb7 13. d5 O-O-O 14. Bg5 Rd7 15. Qa4 exd5 16. e6 fxe6 17. Rxe6 {1-0 Meszaros,L (2229)-Bauma,J (2264) CZE-chT2A 0809 2008 (7.3)}) 10... exd5 {[%emt 0:01:43]} 11. Qxd5 {[%emt 0:00:00]} Qc6 {[%emt 0:00:09]} 12. c4 {[%emt 0:01:22]} h6 {[%emt 0:05:41]} 13. Be3 {[%emt 0:05:12]} b6 {[%emt 0:00:56]} 14. b4 {[%emt 0:06:02]} Bb7 {[%emt 0:13:08]} 15. bxc5 {[%emt 0:11:24]} bxc5 {[%emt 0:01:45]} 16. Qxc6 {[%emt 0:04:27]} Bxc6 {[%emt 0:00:00]} 17. Nd2 {[%emt 0:00:00]} f6 {[%emt 0:16:42]} 18. exf6 {[%emt 0:06:28]} gxf6 {[%emt 0:00:00]} 19. Nb3 {[%emt 0:03:00]} Rg8 {[%emt 0:00:00]} 20. f3 {[%emt 0:00:02]} d6 {[%emt 0:05:55]} 21. Na5 {[%emt 0:04:14]} Kd7 {[%emt 0:01:08]} 22. Rad1 {[%emt 0:02:13]} Kc7 {[%emt 0:08:07]} (22... Rc8 $14) 23. Bf4 $16 {[%emt 0:02:55]} Rb8 {[%emt 0:04:04]} 24. Nb3 $1 {[%emt 0:05:10]} Ba4 {[%emt 0:00:40]} 25. Rd3 {[%emt 0:13:10]} Bxb3 {[%emt 0:01:21]} 26. axb3 {[%emt 0:00:00]} a6 {[%emt 0:10:55]} 27. Re1 {[%emt 0:03:36]} Kd7 {[%emt 0:00:24]} 28. Ree3 {[%emt 0:00:57]} (28. h4 $142) 28... a5 {[%emt 0:02:00]} 29. g3 {[%emt 0:02:42]} a4 {[%emt 0:00:37]} 30. bxa4 {[%emt 0:00:00]} Rb4 {[%emt 0:00:00]} 31. Ra3 {[%emt 0:06:13]} (31. a5 $16) 31... Rxc4 $14 {[%emt 0:00:01]} 32. a5 {[%emt 0:00:34]} Be7 {[%emt 0:08:52]} 33. a6 {[%emt 0:00:50]} Rb4 {[%emt 0:01:04]} (33... Rxf4 $14 34. a7 Rb4) 34. a7 $16 {[%emt 0:03:52]} Ra8 {[%emt 0:00:00]} 35. Ra6 {[%emt 0:00:00]} (35. Bxh6 $6 Rb7 $11) 35... Rb1+ {[%emt 0:01:43]} 36. Kg2 {[%emt 0:00:00]} c4 {[%emt 0:00:16]} 37. Re4 {[%emt 0:03:01]} (37. Bxh6 d5 $16) 37... d5 {[%emt 0:02:07]} (37... Rb7 $16 {was worth a try.}) 38. Rd4 $18 {[%emt 0:00:00]} Rb5 {[%emt 0:00:00]} 39. Bxh6 {[%emt 0:01:22]} c3 {[%emt 0:01:06]} 40. Rd1 {[%emt 0:00:02]} (40. Rd3 $18) 40... f5 $2 {[%emt 0:00:58]} (40... Kc7 $16 {might work better.}) 41. h4 $18 {[%emt 0:05:27]} Bd6 {[%emt 0:06:03]} 42. Bg7 {[%emt 0:07:11]} Rb2+ {[%emt 0:02:00]} 43. Kh3 {[%emt 0:00:22]} Rd2 {[%emt 0:00:26]} 44. Rc1 $1 {[%emt 0:10:30]} d4 {[%emt 0:01:30]} 45. h5 $2 {[%emt 0:00:11]} ({White has to play} 45. Ra4 $1 $18) 45... c2 $1 $14 {[%emt 0:01:51]} 46. Bxd4 {[%emt 0:10:37]} (46. h6 {is interesting.} d3 47. Raa1 Re2 48. h7) 46... Rxd4 {[%emt 0:00:07]} 47. Rxc2 {[%emt 0:00:03]} Rg8 $2 {[%emt 0:10:19][%mdl 8192]} ({Black should try} 47... Rd3 $14) 48. f4 $18 {[%emt 0:03:04]} (48. a8=R $2 {gets mated.} Rxg3+ 49. Kh2 Rh4#) 48... Rd3 {[%emt 0:05:19] [#]} (48... Ra8 $142 49. Rb2 Rd3 50. Rb7+ Bc7) 49. a8=Q $2 {[%emt 0:01:46]} (49. a8=B Rdxg3+ (49... Rgxg3+ $2 50. Kh2 $19) 50. Kh2 Bxf4 51. Bc6+ Ke7 52. Ra7+ Kf6 $19) (49. a8=R Rgxg3+ 50. Kh2 Bxf4 51. R6a7+ Ke6 52. Re8+ Kf6 53. Rc6+ Kg5 54. Rg7+ Kh4 55. Rxg3 Rxg3 $16) (49. Kh2 $1 $18 Ra8 50. h6) 49... Rdxg3+ $14 {[%emt 0:00:12]} 50. Kh2 {[%emt 0:00:10]} Rxa8 {[%emt 0:00:17]} 51. Rxd6+ {[%emt 0:03:54]} Kxd6 {[%emt 0:00:06]} 52. Kxg3 {[%emt 0:00:02]} Rg8+ {[%emt 0:00:28]} 53. Kh3 {[%emt 0:03:07]} Rg4 $2 {[%emt 0:01:15][%mdl 8192] [#]} (53... Ke7 $11) 54. Rc8 $2 {[%emt 0:00:51]} (54. Rg2 $1 {mates} Rxf4 55. h6 Rf3+ 56. Rg3 Rf1 57. Kg2 Rf4 58. h7 Rh4 59. Rh3 Rxh7 60. Rxh7) 54... Ke6 $11 {[%emt 0:01:04]} 55. Rf8 {[%emt 0:00:35]} (55. h6 $5 Rg1 $8 56. Kh4 $11) 55... Rg1 {[%emt 0:01:02]} 56. Kh4 {[%emt 0:00:18]} Rg4+ {[%emt 0:00:06]} 57. Kh3 {[%emt 0:00:01]} Rg1 {[%emt 0:00:07]} 58. Rh8 {[%emt 0:00:54]} Kf7 {[%emt 0:01:45]} 59. h6 {[%emt 0:00:50]} Rg4 {[%emt 0:01:46]} 60. h7 {[%emt 0:00:29]} Kg7 {[%emt 0:00:29]} 61. Rg8+ {[%emt 0:00:15]} (61. Rf8 {simplifies} Kxh7 62. Rxf5 Rg6 63. Kh4) 61... Kxh7 {[%emt 0:00:13]} 62. Rxg4 {[%emt 0:00:03]} fxg4+ {[%emt 0:00:42]} 63. Kxg4 {[%emt 0:00:26]} Kg6 {[%emt 0:00:00]} 64. f5+ {[%emt 0:00:10]} Kf6 {[%emt 0:00:00]} 65. Kf4 {[%emt 0:00:12]} Kf7 {[%emt 0:00:00]} 66. Ke5 {[%emt 0:00:09]} Ke7 {[%emt 0:00:00]} 67. f6+ {[%emt 0:00:03]} Kf7 {[%emt 0:00:03]} 68. Kf5 {[%emt 0:00:07]} Kf8 {[%emt 0:00:05]} 69. Ke6 {[%emt 0:00:03]} Ke8 {[%emt 0:00:03]} 70. f7+ {[%emt 0:00:06]} Kf8 {[%emt 0:00:03]} 71. Kf6 {[%emt 0:00:05]} 1/2-1/2

[Event "Fagernes GM Open Autumn 2024"]
[Site "Fagernes"]
[Date "2024.10.11"]
[Round "7.16"]
[White "Vijayakumar, Rishi"]
[Black "Oksendal, Martin"]
[Result "0-1"]
[ECO "D78"]
[WhiteElo "2172"]
[BlackElo "2271"]
[Annotator "RC"]
[PlyCount "96"]
[EventDate "2024.10.03"]
[EventType "swiss"]
[EventCountry "NOR"]
[SourceTitle "playchess.com"]
[Source "ChessBase"]
[SourceQuality "1"]
[TimeControl "40/6000:2400+30"]

1. d4 {[%emt 0:00:46]} Nf6 {[%emt 0:01:46]} 2. c4 {[%emt 0:00:00]} g6 {[%emt 0:00:01]} 3. g3 {[%emt 0:00:00]} Bg7 {[%emt 0:00:00]} 4. Bg2 {[%emt 0:00:00]} d5 {[%emt 0:00:00]} 5. Nc3 {[%emt 0:00:24]} dxc4 {[%emt 0:00:00]} 6. Nf3 {[%emt 0:01:35]} O-O {[%emt 0:00:20]} 7. O-O {[%emt 0:00:00]} c6 {[%emt 0:11:17]} 8. e4 {[%emt 0:00:00]} Nfd7 {[%emt 0:11:21]} 9. Qe2 {[%emt 0:06:01]} e5 {[%emt 0:11:00]} 10. Bg5 {[%emt 0:20:23]} Qa5 {[%emt 0:09:23]} 11. d5 {[%emt 0:00:00]} b5 {[%emt 0:04:25]} 12. a3 {[%emt 0:09:35]} Re8 {[%emt 0:11:37]} 13. Nd2 {[%emt 0:09:58]} Ba6 {[%emt 0:05:37]} 14. Be3 {[%emt 0:06:36]} Qc7 {[%emt 0:01:31]} 15. Rfc1 {[%emt 0:02:58]} Nb6 {[%emt 0:01:30]} 16. Na2 {[%emt 0:03:58]} Bb7 {[%emt 0:05:52]} 17. Nc3 {[%emt 0:04:00]} Ba6 {[%emt 0:00:32]} 18. b4 {[%emt 0:06:25]} cxb3 {[%emt 0:04:06]} 19. Nxb3 {[%emt 0:00:00]} b4 {[%emt 0:06:37]} 20. Nb5 {[%emt 0:00:00]} Qd7 {[%emt 0:00:22]} 21. dxc6 {[%emt 0:00:25]} Nxc6 {[%emt 0:00:32]} 22. Bf1 {[%emt 0:03:01]} Nd4 {[%emt 0:01:11]} 23. Bxd4 {[%emt 0:03:43]} exd4 {[%emt 0:00:00]} 24. Nc5 {[%emt 0:01:10]} d3 {[%emt 0:02:26]} 25. Qf3 {[%emt 0:05:12]} Qe7 {[%emt 0:04:10]} 26. Nxa6 {[%emt 0:00:58]} Bxa1 {[%emt 0:00:05]} 27. Rxa1 {[%emt 0:00:00]} Qe5 {[%emt 0:00:00]} 28. Rd1 {[%emt 0:04:28]} Qxb5 {[%emt 0:00:00]} 29. Nc7 {[%emt 0:00:00]} Qc6 {[%emt 0:01:22]} 30. Nxa8 {[%emt 0:00:00]} Qxa8 {[%emt 0:00:00]} 31. Bxd3 {[%emt 0:02:52]} bxa3 {[%emt 0:00:00]} 32. Bb1 {[%emt 0:02:36]} Nc4 {[%emt 0:00:18]} 33. Qb3 {[%emt 0:00:46]} Rc8 {[%emt 0:00:55]} 34. Ba2 {[%emt 0:00:20]} Ne5 {[%emt 0:00:32]} 35. Rd5 {[%emt 0:00:42]} Qb8 {[%emt 0:00:35]} 36. Rb5 {[%emt 0:00:33]} Qd6 {[%emt 0:00:00]} 37. Rd5 {[%emt 0:00:00]} Qf6 {[%emt 0:00:00]} 38. Kg2 {[%emt 0:00:04]} Ng4 {[%emt 0:00:00]} 39. Rd2 {[%emt 0:00:00]} Rc3 {[%emt 0:00:00]} 40. Qb8+ {[%emt 0:00:00]} Kg7 {[%emt 0:00:00]} 41. Qxa7 {[%emt 0:06:17]} Qf3+ {[%emt 0:10:13]} 42. Kh3 {[%emt 0:00:00]} Rd3 {[%emt 0:01:37]} 43. Rxd3 {[%emt 0:20:16]} Nxf2+ {[%emt 0:00:10]} 44. Qxf2 {[%emt 0:00:02]} Qxf2 {[%emt 0:00:07]} 45. Rxa3 {[%emt 0:00:06]} Qf1+ {[%emt 0:00:23]} 46. Kh4 {[%emt 0:00:58]} h5 {[%emt 0:01:28]} 47. g4 {[%emt 0:06:42]} g5+ {[%emt 0:01:11]} 48. Kxh5 {[%emt 0:00:11]} Qf6 {[%emt 0:00:16]} 0-1

[Event "Fagernes GM Open Autumn 2024"]
[Site "Fagernes"]
[Date "2024.10.11"]
[Round "7.17"]
[White "Sian, Shadi"]
[Black "Bhagat Kush"]
[Result "0-1"]
[ECO "E97"]
[WhiteElo "2182"]
[BlackElo "2245"]
[Annotator "RC"]
[PlyCount "104"]
[EventDate "2024.10.03"]
[EventType "swiss"]
[EventCountry "NOR"]
[SourceTitle "playchess.com"]
[Source "ChessBase"]
[SourceQuality "1"]
[TimeControl "40/6000:2400+30"]

1. d4 {[%emt 0:04:33]} Nf6 {[%emt 0:00:00]} 2. c4 {[%emt 0:00:00]} g6 {[%emt 0:00:00]} 3. Nc3 {[%emt 0:00:00]} Bg7 {[%emt 0:00:00]} 4. e4 {[%emt 0:00:00]} d6 {[%emt 0:00:00]} 5. Nf3 {[%emt 0:00:00]} O-O {[%emt 0:00:00]} 6. Be2 {[%emt 0:00:00]} e5 {[%emt 0:00:00]} 7. Be3 {[%emt 0:00:00]} Ng4 {[%emt 0:06:18]} 8. Bg5 {[%emt 0:00:00]} f6 {[%emt 0:00:00]} 9. Bc1 {[%emt 0:02:49]} Nc6 {[%emt 0:00:00]} 10. O-O {[%emt 0:00:00]} Nh6 {[%emt 0:00:58]} 11. d5 {[%emt 0:05:43]} Ne7 {[%emt 0:00:22]} 12. b4 {[%emt 0:03:11]} a5 {[%emt 0:01:21]} 13. Bxh6 {[%emt 0:28:03]} Bxh6 {[%emt 0:00:00]} 14. a3 {[%emt 0:00:00]} f5 {[%emt 0:26:15]} 15. h3 {[%emt 0:00:00]} Kh8 {[%emt 0:02:17]} 16. Bd3 {[%emt 0:12:53]} Ng8 {[%emt 0:03:47]} 17. c5 {[%emt 0:01:40]} Nf6 {[%emt 0:28:50]} 18. Nh2 {[%emt 0:17:07]} axb4 {[%emt 0:11:10]} 19. axb4 {[%emt 0:00:00]} Rxa1 {[%emt 0:00:00]} 20. Qxa1 {[%emt 0:00:00]} Nh5 {[%emt 0:00:53]} 21. Be2 {[%emt 0:13:51]} Nf4 {[%emt 0:00:46]} 22. Bf3 {[%emt 0:00:00]} Qh4 {[%emt 0:02:10]} 23. exf5 {[%emt 0:05:34]} gxf5 {[%emt 0:00:28]} 24. cxd6 {[%emt 0:00:32]} cxd6 {[%emt 0:00:31]} 25. Kh1 {[%emt 0:00:46]} Nd3 {[%emt 0:05:08]} 26. g3 {[%emt 0:01:55]} Qxb4 {[%emt 0:01:12]} 27. Be2 {[%emt 0:00:00]} Nc5 {[%emt 0:01:09]} 28. Nf3 {[%emt 0:00:00]} Ne4 {[%emt 0:01:11]} 29. Nxe4 {[%emt 0:00:00]} Qxe4 {[%emt 0:00:00]} 30. Qd1 {[%emt 0:00:00]} Bd7 {[%emt 0:00:29]} 31. Re1 {[%emt 0:00:46]} Ba4 {[%emt 0:00:00]} 32. Qb1 {[%emt 0:00:04]} Qxd5 {[%emt 0:00:19]} 33. Qb4 {[%emt 0:00:00]} Bc6 {[%emt 0:00:05]} 34. Kh2 {[%emt 0:00:00]} f4 {[%emt 0:02:58]} 35. g4 {[%emt 0:00:00]} Bg7 {[%emt 0:00:34]} 36. Rd1 {[%emt 0:00:00]} Qc5 {[%emt 0:00:00]} 37. Qxc5 {[%emt 0:00:00]} dxc5 {[%emt 0:00:00]} 38. Ng5 {[%emt 0:00:00]} Re8 {[%emt 0:00:09]} 39. Bc4 {[%emt 0:00:00]} b5 {[%emt 0:00:03]} 40. Bf7 {[%emt 0:00:00]} Rf8 {[%emt 0:00:00]} 41. Be6 {[%emt 0:01:25]} Bf6 {[%emt 0:16:05]} 42. Nf7+ {[%emt 0:02:40]} Kg7 {[%emt 0:01:32]} 43. g5 {[%emt 0:00:22]} Rxf7 {[%emt 0:03:45]} 44. Bxf7 {[%emt 0:00:05]} Kxf7 {[%emt 0:00:32]} 45. gxf6 {[%emt 0:00:18]} c4 {[%emt 0:13:40]} 46. Rd6 {[%emt 0:04:22]} Be4 {[%emt 0:02:35]} 47. Rb6 {[%emt 0:00:03]} c3 {[%emt 0:00:06]} 48. Rxb5 {[%emt 0:00:03]} c2 {[%emt 0:00:04]} 49. Rc5 {[%emt 0:00:02]} f3 {[%emt 0:01:49]} 50. Kg1 {[%emt 0:02:37]} Bd3 {[%emt 0:00:05]} 51. Rc6 {[%emt 0:00:03]} e4 {[%emt 0:00:08]} 52. h4 {[%emt 0:01:46]} h5 {[%emt 0:00:06]} 0-1

[Event "Fagernes GM Open Autumn 2024"]
[Site "Fagernes"]
[Date "2024.10.11"]
[Round "7.18"]
[White "Sherman, Raem"]
[Black "Gasland, Lukas Dominik"]
[Result "1-0"]
[ECO "B52"]
[WhiteElo "2390"]
[BlackElo "1905"]
[Annotator "TA"]
[PlyCount "97"]
[EventDate "2024.10.03"]
[EventType "swiss"]
[EventCountry "NOR"]
[SourceTitle "playchess.com"]
[Source "ChessBase"]
[SourceQuality "1"]
[TimeControl "40/6000:2400+30"]

{[%evp 21,97,28,32,0,27,0,0,0,0,0,0,0,11,3,9,8,47,49,37,25,13,0,4,0,0,0,119,121,123,129,203,198,190,162,201,175,266,250,347,347,352,344,325,314,368,360,454,308,316,316,316,316,316,309,307,304,324,324,324,324,402,324,389,382,622,622,696,690,691,657,710,701,641,586,759,759,1004,950]} 1. e4 {[%emt 0:00:00]} c5 {[%emt 0:00:00]} 2. Nf3 {[%emt 0:00:00]} d6 {[%emt 0:00:00]} 3. Bb5+ {[%emt 0:00:00]} Bd7 {[%emt 0:00:00]} 4. c4 {[%emt 0:00:00]} a6 {[%emt 0:01:53]} 5. Bxd7+ {[%emt 0:00:00]} Qxd7 {[%emt 0:00:00]} 6. Nc3 {[%emt 0:00:00]} Nf6 {[%emt 0:00:22]} 7. d4 {[%emt 0:00:00]} cxd4 {[%emt 0:00:00]} 8. Nxd4 {[%emt 0:00:00]} g6 {[%emt 0:01:04]} 9. f3 {[%emt 0:00:00]} Bg7 {[%emt 0:00:28]} 10. Be3 {[%emt 0:00:00]} O-O {[%emt 0:00:00]} 11. O-O {[%emt 0:00:00]} Nc6 {[%emt 0:00:50]} 12. Qd2 {[%emt 0:00:00]} Rac8 {[%emt 0:01:24]} 13. b3 {[%emt 0:00:00]} b5 {[%emt 0:05:32]} 14. cxb5 {[%emt 0:05:39] The position is equal.} Nxd4 {[%emt 0:00:00]} 15. Bxd4 {[%emt 0:00:00]} axb5 {[%emt 0:00:00]} 16. Rac1 {[%emt 0:05:27]} Ra8 {[%emt 0:16:10]} 17. Rc2 {[%emt 0:00:22]} Rfc8 {[%emt 0:00:25]} 18. Rfc1 {[%emt 0:03:38]} b4 {[%emt 0:08:59]} 19. Na4 {[%emt 0:06:07]} Rxc2 {[%emt 0:01:18]} 20. Qxc2 {[%emt 0:03:35] Threatens to win with Nb6.} Qb7 {[%emt 0:09:31]} 21. Be3 {[%emt 0:08:15]} Nd7 {[%emt 0:04:22]} 22. Qc6 {[%emt 0:07:55]} Qxc6 {[%emt 0:02:44]} 23. Rxc6 {[%emt 0:00:00]} Nc5 {[%emt 0:04:14] [#]} 24. Nb6 $1 $16 {[%emt 0:03:53] White leaves nothing to chance now.} (24. Nxc5 dxc5 25. Bxc5 e6 26. Bxb4 Bd4+ 27. Kf1 Rxa2) 24... Rb8 {[%emt 0:02:30]} (24... Rxa2 $2 {perishes.} 25. Rc8+ Bf8 26. Bh6 $18) 25. Kf1 {[%emt 0:03:42]} Ne6 {[%emt 0:02:43]} (25... f5 $16) 26. Nd5 $18 {[%emt 0:01:40]} Kf8 {[%emt 0:04:39]} 27. Nxb4 {[%emt 0:03:29]} f5 {[%emt 0:02:56]} 28. Rc4 {[%emt 0:03:52]} Kf7 {[%emt 0:02:33]} (28... Ke8 $142 29. Nd5 Nc5) 29. Nc6 {[%emt 0:01:07]} Rb7 {[%emt 0:01:30]} 30. b4 {[%emt 0:00:02]} Ke8 {[%emt 0:02:35]} 31. a4 {[%emt 0:00:15]} fxe4 {[%emt 0:00:34]} 32. fxe4 {[%emt 0:00:00]} Kd7 {[%emt 0:00:00]} 33. b5 {[%emt 0:03:09]} Nc7 {[%emt 0:02:58]} 34. Nb4 {[%emt 0:00:02]} Nxb5 {[%emt 0:00:54]} 35. axb5 {[%emt 0:00:00]} Rxb5 {[%emt 0:00:00]} 36. Nd5 {[%emt 0:00:00]} Rb7 {[%emt 0:00:26] Repels Rc7+} 37. Rb4 {[%emt 0:00:00]} Rxb4 {[%emt 0:01:16]} 38. Nxb4 {[%emt 0:00:00]} Bc3 {[%emt 0:00:00]} 39. Nd5 {[%emt 0:00:00]} Be5 {[%emt 0:00:00]} 40. Bf4 {[%emt 0:00:00] [#] Hoping for Bxe5.} Bd4 {[%emt 0:00:00]} 41. Ke2 {[%emt 0:40:43]} e6 {[%emt 0:40:09]} 42. Kd3 {[%emt 0:02:18]} Bb2 {[%emt 0:01:17]} (42... Bg7 43. Nb4 h5) 43. Nb6+ {[%emt 0:00:21] White is clearly winning.} Kc6 {[%emt 0:00:51]} 44. Nc4 {[%emt 0:00:09][%csl LRb2,LRd6]} Bh8 {[%emt 0:00:14]} 45. Bxd6 {[%emt 0:00:10] Strongly threatening Be5.} Bg7 {[%emt 0:00:36]} 46. Be5 {[%emt 0:00:15]} Bf8 {[%emt 0:00:09]} 47. Ne3 {[%emt 0:00:06]} h5 {[%emt 0:00:25]} 48. Bf6 {[%emt 0:00:35]} Bh6 {[%emt 0:01:12]} 49. Nc4 {[%emt 0:00:17] Weighted Error Value: White=0.12 (very precise) /Black=0.40.  Mistake:       	---       	Black=4      Inaccurate:     	White=2     	Black=4      OK:         	White=16    	Black=10     Best:        	White=1     	Black=1      Strong:       	White=1     	---} 1-0